[Event "Titled Tuesday Blitz September 27 Early 2022"]
[White "Kovacevic, Radmila"]
[Black "Neal, James"]
[WhiteFideId "933171"]
[BlackFideId "2089300"]
[WhiteElo "2208"]
[BlackElo "2059"]
[Result "1-0"]
[Round "09"]
[TimeControl "180+1"]
[Date "2022.09.27"]
[WhiteClock "0:01:08"]
[BlackClock "0:00:03"]

1. e4 {[%clk 0:03:00]}  e6 {[%clk 0:02:52]} 2. d4 {[%clk 0:02:59]}  d5 {[%clk 0:02:51]} 3. e5 {[%clk 0:03:00]}  c5 {[%clk 0:02:50]} 4. c3 {[%clk 0:03:00]}  Nc6 {[%clk 0:02:50]} 5. Nf3 {[%clk 0:03:00]}  Nh6 {[%clk 0:02:49]} 6. Bd3 {[%clk 0:02:58]}  f6 {[%clk 0:02:45]} 7. Bxh6 {[%clk 0:02:56]}  gxh6 {[%clk 0:02:46]} 8. Nh4 {[%clk 0:02:51]}  fxe5 {[%clk 0:02:28]} 9. Qh5+ {[%clk 0:02:50]}  Kd7 {[%clk 0:02:25]} 10. dxe5 {[%clk 0:02:38]}  c4 {[%clk 0:02:15]} 11. Be2 {[%clk 0:02:32]}  Qg5 {[%clk 0:02:09]} 12. f4 {[%clk 0:02:21]}  Qxf4 {[%clk 0:01:47]} 13. Rf1 {[%clk 0:02:09]}  Qc1+ {[%clk 0:01:35]} 14. Kf2 {[%clk 0:01:57]}  Bc5+ {[%clk 0:01:19]} 15. Kg3 {[%clk 0:01:57]}  Qg5+ {[%clk 0:01:00]} 16. Qxg5 {[%clk 0:01:56]}  hxg5 {[%clk 0:01:01]} 17. Nf3 {[%clk 0:01:56]}  Be3 {[%clk 0:00:37]} 18. h3 {[%clk 0:01:52]}  Bf4+ {[%clk 0:00:34]} 19. Kf2 {[%clk 0:01:51]}  Nxe5 {[%clk 0:00:33]} 20. Nxe5+ {[%clk 0:01:49]}  Bxe5 {[%clk 0:00:34]} 21. Nd2 {[%clk 0:01:48]}  h6 {[%clk 0:00:19]} 22. Nf3 {[%clk 0:01:46]}  Bd6 {[%clk 0:00:20]} 23. Rad1 {[%clk 0:01:44]}  Rf8 {[%clk 0:00:16]} 24. Kg1 {[%clk 0:01:43]}  Ke7 {[%clk 0:00:14]} 25. Kh1 {[%clk 0:01:39]}  Bd7 {[%clk 0:00:12]} 26. b4 {[%clk 0:01:31]}  Be8 {[%clk 0:00:11]} 27. Nd4 {[%clk 0:01:29]}  Bg6 {[%clk 0:00:09]} 28. Nb5 {[%clk 0:01:26]}  a6 {[%clk 0:00:07]} 29. Rxf8 {[%clk 0:01:22]}  Rxf8 {[%clk 0:00:05]} 30. Nxd6 {[%clk 0:01:22]}  Kxd6 {[%clk 0:00:05]} 31. Bxc4 {[%clk 0:01:22]}  Rc8 {[%clk 0:00:03]} 32. Bd3 {[%clk 0:01:20]}  Bxd3 {[%clk 0:00:01]} 33. Rxd3 {[%clk 0:01:21]}  e5 {[%clk 0:00:01]} 34. Kg1 {[%clk 0:01:19]}  e4 {[%clk 0:00:02]} 35. Re3 {[%clk 0:01:19]}  Ke5 {[%clk 0:00:01]} 36. Kf2 {[%clk 0:01:17]}  Rc4 {[%clk 0:00:02]} 37. a3 {[%clk 0:01:13]}  d4 {[%clk 0:00:02]} 38. cxd4+ {[%clk 0:01:14]}  Rxd4 {[%clk 0:00:03]} 39. Kg3 {[%clk 0:01:13]}  Rd3 {[%clk 0:00:03]} 40. Kf2 {[%clk 0:01:13]}  Kd4 {[%clk 0:00:04]} 41. Re2 {[%clk 0:01:09]}  Rxa3 {[%clk 0:00:02]} 42. Rd2+ {[%clk 0:01:09]}  Ke5 {[%clk 0:00:03]} 43. Ke2 {[%clk 0:01:08]} 1-0


[Site "https://www.chess.com"]

[Event "Titled Tuesday Blitz September 27 Early 2022"]
[White "Kravtsiv, Martyn"]
[Black "Kollars, Dmitrij"]
[WhiteFideId "14113147"]
[BlackFideId "12909572"]
[WhiteElo "2694"]
[BlackElo "2584"]
[Result "0-1"]
[Round "09"]
[TimeControl "180+1"]
[Date "2022.09.27"]
[WhiteClock "0:00:08"]
[BlackClock "0:00:16"]

1. e4 {[%clk 0:03:00]}  e5 {[%clk 0:02:58]} 2. Nf3 {[%clk 0:03:01]}  Nc6 {[%clk 0:02:59]} 3. Nc3 {[%clk 0:03:01]}  Nf6 {[%clk 0:02:58]} 4. a4 {[%clk 0:03:01]}  Be7 {[%clk 0:02:47]} 5. d4 {[%clk 0:02:53]}  exd4 {[%clk 0:02:48]} 6. Nxd4 {[%clk 0:02:53]}  O-O {[%clk 0:02:49]} 7. Nxc6 {[%clk 0:02:51]}  bxc6 {[%clk 0:02:49]} 8. Bd3 {[%clk 0:02:50]}  d5 {[%clk 0:02:41]} 9. O-O {[%clk 0:02:50]}  Bg4 {[%clk 0:02:39]} 10. Qd2 {[%clk 0:02:24]}  Re8 {[%clk 0:02:24]} 11. e5 {[%clk 0:02:13]}  Nd7 {[%clk 0:02:24]} 12. h3 {[%clk 0:02:13]}  Be6 {[%clk 0:02:16]} 13. f4 {[%clk 0:02:13]}  f5 {[%clk 0:02:15]} 14. Qf2 {[%clk 0:01:56]}  c5 {[%clk 0:01:53]} 15. Bb5 {[%clk 0:01:50]}  d4 {[%clk 0:01:43]} 16. Ne2 {[%clk 0:01:49]}  Bd5 {[%clk 0:01:43]} 17. Ng3 {[%clk 0:01:44]}  c6 {[%clk 0:01:40]} 18. Bd3 {[%clk 0:01:42]}  g6 {[%clk 0:01:36]} 19. Qe2 {[%clk 0:01:37]}  Nf8 {[%clk 0:01:33]} 20. c4 {[%clk 0:01:36]}  Bf7 {[%clk 0:01:26]} 21. Bd2 {[%clk 0:01:30]}  Rb8 {[%clk 0:01:25]} 22. Rab1 {[%clk 0:01:27]}  Rb3 {[%clk 0:01:24]} 23. Be1 {[%clk 0:01:18]}  Qc8 {[%clk 0:01:13]} 24. Rf3 {[%clk 0:01:11]}  Qa6 {[%clk 0:01:11]} 25. Kh2 {[%clk 0:00:58]}  Rxd3 {[%clk 0:01:01]} 26. Qxd3 {[%clk 0:00:54]}  Bxc4 {[%clk 0:01:01]} 27. Qc2 {[%clk 0:00:55]}  Bd5 {[%clk 0:00:55]} 28. Rf2 {[%clk 0:00:54]}  Ne6 {[%clk 0:00:55]} 29. b3 {[%clk 0:00:54]}  Bh4 {[%clk 0:00:47]} 30. Qd2 {[%clk 0:00:44]}  Rb8 {[%clk 0:00:41]} 31. Rf1 {[%clk 0:00:37]}  c4 {[%clk 0:00:36]} 32. bxc4 {[%clk 0:00:17]}  Rxb1 {[%clk 0:00:33]} 33. cxd5 {[%clk 0:00:17]}  cxd5 {[%clk 0:00:31]} 34. Rg1 {[%clk 0:00:13]}  Qxa4 {[%clk 0:00:20]} 35. Nxf5 {[%clk 0:00:13]}  Bxe1 {[%clk 0:00:16]} 36. Rxe1 {[%clk 0:00:11]}  Rxe1 {[%clk 0:00:15]} 37. Nh6+ {[%clk 0:00:11]}  Kg7 {[%clk 0:00:15]} 38. Qxe1 {[%clk 0:00:12]}  d3 {[%clk 0:00:15]} 39. Qh4 {[%clk 0:00:11]}  Qxf4+ {[%clk 0:00:15]} 40. Qxf4 {[%clk 0:00:08]}  Nxf4 {[%clk 0:00:16]} 0-1


[Site "https://www.chess.com"]

[Event "Titled Tuesday Blitz September 27 Early 2022"]
[White "Kukula, Pawel"]
[Black "Moaataz, Ayah"]
[WhiteFideId "1115081"]
[BlackFideId "10615873"]
[WhiteElo "2062"]
[BlackElo "1993"]
[Result "1-0"]
[Round "09"]
[TimeControl "180+1"]
[Date "2022.09.27"]
[WhiteClock "0:00:32"]
[BlackClock "0:00:18"]

1. c4 {[%clk 0:03:00]}  c6 {[%clk 0:02:59]} 2. b3 {[%clk 0:02:58]}  d5 {[%clk 0:03:00]} 3. Bb2 {[%clk 0:02:58]}  Nf6 {[%clk 0:03:00]} 4. e3 {[%clk 0:02:57]}  g6 {[%clk 0:03:00]} 5. Bxf6 {[%clk 0:02:55]}  exf6 {[%clk 0:03:01]} 6. Nc3 {[%clk 0:02:56]}  d4 {[%clk 0:02:58]} 7. exd4 {[%clk 0:02:55]}  Qxd4 {[%clk 0:02:59]} 8. Nf3 {[%clk 0:02:55]}  Qd8 {[%clk 0:02:59]} 9. d4 {[%clk 0:02:56]}  Bg7 {[%clk 0:03:00]} 10. Be2 {[%clk 0:02:55]}  O-O {[%clk 0:02:59]} 11. O-O {[%clk 0:02:56]}  f5 {[%clk 0:02:59]} 12. Re1 {[%clk 0:02:55]}  f4 {[%clk 0:03:00]} 13. Bf1 {[%clk 0:02:54]}  g5 {[%clk 0:02:59]} 14. Ne5 {[%clk 0:02:52]}  c5 {[%clk 0:02:54]} 15. dxc5 {[%clk 0:02:36]}  Qa5 {[%clk 0:02:43]} 16. Nb5 {[%clk 0:02:29]}  a6 {[%clk 0:02:37]} 17. Nd6 {[%clk 0:02:16]}  Qxc5 {[%clk 0:02:30]} 18. Nexf7 {[%clk 0:01:49]}  Rxf7 {[%clk 0:01:50]} 19. Nxf7 {[%clk 0:01:49]}  Kxf7 {[%clk 0:01:50]} 20. Qh5+ {[%clk 0:01:42]}  Kf6 {[%clk 0:01:41]} 21. Rad1 {[%clk 0:01:34]}  Bf5 {[%clk 0:01:31]} 22. Rd5 {[%clk 0:01:28]}  Qc7 {[%clk 0:01:07]} 23. Bd3 {[%clk 0:01:13]}  Bg6 {[%clk 0:00:55]} 24. Qxg5+ {[%clk 0:01:12]}  Kf7 {[%clk 0:00:52]} 25. Bf5 {[%clk 0:00:59]}  Bf6 {[%clk 0:00:39]} 26. Qh6 {[%clk 0:00:33]}  Bg7 {[%clk 0:00:29]} 27. Qh3 {[%clk 0:00:32]}  Bxf5 {[%clk 0:00:17]} 28. Qxf5+ {[%clk 0:00:33]}  Kg8 {[%clk 0:00:18]} 29. Re8+ {[%clk 0:00:32]} 1-0


[Site "https://www.chess.com"]

[Event "Titled Tuesday Blitz September 27 Early 2022"]
[White "Kvon, Andrey"]
[Black "Shandrygin, Nikita"]
[WhiteFideId "14201356"]
[BlackFideId "24198668"]
[WhiteElo "2458"]
[BlackElo "2323"]
[Result "1-0"]
[Round "09"]
[TimeControl "180+1"]
[Date "2022.09.27"]
[WhiteClock "0:00:45"]
[BlackClock "0:00:10"]

1. d4 {[%clk 0:03:00]}  Nf6 {[%clk 0:02:59]} 2. c4 {[%clk 0:03:01]}  e6 {[%clk 0:02:58]} 3. Nf3 {[%clk 0:03:01]}  d5 {[%clk 0:02:51]} 4. Nc3 {[%clk 0:03:00]}  Be7 {[%clk 0:02:48]} 5. Bf4 {[%clk 0:02:59]}  O-O {[%clk 0:02:46]} 6. Rc1 {[%clk 0:02:59]}  c6 {[%clk 0:02:43]} 7. e3 {[%clk 0:02:47]}  b6 {[%clk 0:02:43]} 8. cxd5 {[%clk 0:02:45]}  exd5 {[%clk 0:02:41]} 9. Bd3 {[%clk 0:02:45]}  Nbd7 {[%clk 0:02:36]} 10. Ne5 {[%clk 0:02:43]}  Nxe5 {[%clk 0:02:30]} 11. dxe5 {[%clk 0:02:43]}  Nd7 {[%clk 0:02:20]} 12. h4 {[%clk 0:02:42]}  Nc5 {[%clk 0:02:17]} 13. Bb1 {[%clk 0:02:39]}  Ne6 {[%clk 0:02:02]} 14. Bg5 {[%clk 0:02:06]}  Bd7 {[%clk 0:01:30]} 15. Qf3 {[%clk 0:01:28]}  g6 {[%clk 0:01:20]} 16. Bf6 {[%clk 0:01:25]}  Bxf6 {[%clk 0:00:20]} 17. exf6 {[%clk 0:01:26]}  Re8 {[%clk 0:00:19]} 18. h5 {[%clk 0:01:19]}  g5 {[%clk 0:00:19]} 19. Qf5 {[%clk 0:01:19]}  Kf8 {[%clk 0:00:15]} 20. Rd1 {[%clk 0:00:56]}  h6 {[%clk 0:00:15]} 21. Ne4 {[%clk 0:00:46]}  dxe4 {[%clk 0:00:09]} 22. Rxd7 {[%clk 0:00:45]}  Qxd7 {[%clk 0:00:10]} 23. Qh7 {[%clk 0:00:45]} 1-0


[Site "https://www.chess.com"]

[Event "Titled Tuesday Blitz September 27 Early 2022"]
[White "Levitan, Caleb Levi"]
[Black "Rosenberg, Evan S"]
[WhiteFideId "14332620"]
[BlackFideId "2019299"]
[WhiteElo "1811"]
[BlackElo "2373"]
[Result "0-1"]
[Round "09"]
[TimeControl "180+1"]
[Date "2022.09.27"]
[WhiteClock "0:00:01"]
[BlackClock "0:00:19"]

1. b3 {[%clk 0:02:55]}  e5 {[%clk 0:02:56]} 2. Bb2 {[%clk 0:02:54]}  Nc6 {[%clk 0:02:57]} 3. g3 {[%clk 0:02:54]}  d5 {[%clk 0:02:56]} 4. Bg2 {[%clk 0:02:54]}  Be6 {[%clk 0:02:57]} 5. e3 {[%clk 0:02:51]}  Bd6 {[%clk 0:02:54]} 6. Ne2 {[%clk 0:02:50]}  Nf6 {[%clk 0:02:54]} 7. d4 {[%clk 0:02:47]}  e4 {[%clk 0:02:44]} 8. c4 {[%clk 0:02:46]}  dxc4 {[%clk 0:02:39]} 9. bxc4 {[%clk 0:02:45]}  Bxc4 {[%clk 0:02:37]} 10. Nd2 {[%clk 0:02:45]}  Bd3 {[%clk 0:02:35]} 11. O-O {[%clk 0:02:40]}  O-O {[%clk 0:02:34]} 12. Re1 {[%clk 0:02:34]}  Re8 {[%clk 0:02:33]} 13. Nc1 {[%clk 0:02:24]}  Nb4 {[%clk 0:02:29]} 14. Bf1 {[%clk 0:02:00]}  Nc2 {[%clk 0:02:20]} 15. Nxd3 {[%clk 0:01:58]}  exd3 {[%clk 0:02:19]} 16. Bxd3 {[%clk 0:01:59]}  Nxe1 {[%clk 0:02:16]} 17. Qxe1 {[%clk 0:01:59]}  Qd7 {[%clk 0:02:05]} 18. Qf1 {[%clk 0:01:42]}  c6 {[%clk 0:01:56]} 19. e4 {[%clk 0:01:40]}  Bb4 {[%clk 0:01:54]} 20. Nc4 {[%clk 0:01:13]}  b5 {[%clk 0:01:18]} 21. Ne5 {[%clk 0:01:11]}  Qd6 {[%clk 0:01:12]} 22. a4 {[%clk 0:00:56]}  a6 {[%clk 0:01:10]} 23. Rc1 {[%clk 0:00:46]}  c5 {[%clk 0:01:04]} 24. axb5 {[%clk 0:00:32]}  cxd4 {[%clk 0:01:05]} 25. Nc4 {[%clk 0:00:31]}  Qe6 {[%clk 0:00:53]} 26. e5 {[%clk 0:00:20]}  Ng4 {[%clk 0:00:42]} 27. bxa6 {[%clk 0:00:20]}  Nxe5 {[%clk 0:00:37]} 28. Nxe5 {[%clk 0:00:20]}  Qxe5 {[%clk 0:00:38]} 29. Bb5 {[%clk 0:00:13]}  Red8 {[%clk 0:00:27]} 30. Qd3 {[%clk 0:00:11]}  Bc3 {[%clk 0:00:24]} 31. Bxc3 {[%clk 0:00:04]}  dxc3 {[%clk 0:00:24]} 32. Qf1 {[%clk 0:00:03]}  Rab8 {[%clk 0:00:22]} 33. a7 {[%clk 0:00:01]}  Rxb5 {[%clk 0:00:19]} 0-1


[Site "https://www.chess.com"]

[Event "Titled Tuesday Blitz September 27 Early 2022"]
[White "Madaminov, Mukhiddin"]
[Black "Barria Zuniga, Daniel"]
[WhiteFideId "14210703"]
[BlackFideId "3400816"]
[WhiteElo "2106"]
[BlackElo "2414"]
[Result "1/2-1/2"]
[Round "09"]
[TimeControl "180+1"]
[Date "2022.09.27"]
[WhiteClock "0:01:05"]
[BlackClock "0:00:22"]

1. d4 {[%clk 0:03:00]}  d5 {[%clk 0:02:57]} 2. Nc3 {[%clk 0:03:00]}  e6 {[%clk 0:02:57]} 3. Bf4 {[%clk 0:03:00]}  a6 {[%clk 0:02:57]} 4. e3 {[%clk 0:03:00]}  Nf6 {[%clk 0:02:57]} 5. g4 {[%clk 0:03:00]}  b5 {[%clk 0:02:56]} 6. g5 {[%clk 0:02:59]}  Nfd7 {[%clk 0:02:55]} 7. h4 {[%clk 0:03:00]}  c5 {[%clk 0:02:55]} 8. Nf3 {[%clk 0:03:00]}  Nc6 {[%clk 0:02:54]} 9. Bg2 {[%clk 0:03:00]}  cxd4 {[%clk 0:02:34]} 10. exd4 {[%clk 0:02:55]}  Bb4 {[%clk 0:02:33]} 11. O-O {[%clk 0:02:54]}  Bxc3 {[%clk 0:02:23]} 12. bxc3 {[%clk 0:02:55]}  O-O {[%clk 0:02:24]} 13. h5 {[%clk 0:02:50]}  Nb6 {[%clk 0:02:23]} 14. Qc1 {[%clk 0:02:42]}  Nc4 {[%clk 0:02:21]} 15. Nd2 {[%clk 0:02:27]}  Bb7 {[%clk 0:02:00]} 16. Nxc4 {[%clk 0:02:24]}  dxc4 {[%clk 0:02:01]} 17. a4 {[%clk 0:02:20]}  Na5 {[%clk 0:01:57]} 18. Bxb7 {[%clk 0:02:14]}  Nxb7 {[%clk 0:01:58]} 19. axb5 {[%clk 0:02:14]}  axb5 {[%clk 0:01:57]} 20. Rxa8 {[%clk 0:02:14]}  Qxa8 {[%clk 0:01:58]} 21. Qb2 {[%clk 0:02:15]}  e5 {[%clk 0:01:32]} 22. Bxe5 {[%clk 0:02:11]}  Qc8 {[%clk 0:01:32]} 23. Qxb5 {[%clk 0:02:09]}  Qg4+ {[%clk 0:01:32]} 24. Bg3 {[%clk 0:02:09]}  Nd6 {[%clk 0:01:21]} 25. Qe5 {[%clk 0:02:08]}  Ne4 {[%clk 0:01:17]} 26. Re1 {[%clk 0:02:06]}  Nxg5 {[%clk 0:01:16]} 27. Re3 {[%clk 0:01:34]}  Nf3+ {[%clk 0:01:09]} 28. Rxf3 {[%clk 0:01:34]}  Qxf3 {[%clk 0:01:10]} 29. d5 {[%clk 0:01:30]}  Qd1+ {[%clk 0:01:07]} 30. Kg2 {[%clk 0:01:28]}  Qxc2 {[%clk 0:01:07]} 31. d6 {[%clk 0:01:24]}  Qd3 {[%clk 0:01:07]} 32. Qg5 {[%clk 0:01:21]}  h6 {[%clk 0:01:04]} 33. Qe7 {[%clk 0:01:17]}  Qd5+ {[%clk 0:01:00]} 34. f3 {[%clk 0:01:15]}  Ra8 {[%clk 0:00:56]} 35. d7 {[%clk 0:01:12]}  Ra2+ {[%clk 0:00:54]} 36. Bf2 {[%clk 0:01:12]}  Rd2 {[%clk 0:00:50]} 37. Qe8+ {[%clk 0:01:05]}  Kh7 {[%clk 0:00:49]} 38. d8=Q {[%clk 0:01:05]}  Qxd8 {[%clk 0:00:48]} 39. Qxf7 {[%clk 0:01:06]}  Qg5+ {[%clk 0:00:47]} 40. Kf1 {[%clk 0:01:04]}  Rd1+ {[%clk 0:00:29]} 41. Be1 {[%clk 0:01:05]}  Qd5 {[%clk 0:00:22]} 42. Qg6+ {[%clk 0:01:04]}  Kg8 {[%clk 0:00:22]} 43. Qe8+ {[%clk 0:01:04]}  Kh7 {[%clk 0:00:23]} 44. Qg6+ {[%clk 0:01:05]}  Kg8 {[%clk 0:00:23]} 45. Qe8+ {[%clk 0:01:05]}  Kh7 {[%clk 0:00:22]} 46. Qg6+ {[%clk 0:01:05]} 1/2-1/2


[Site "https://www.chess.com"]

[Event "Titled Tuesday Blitz September 27 Early 2022"]
[White "Mahdavi, Reza"]
[Black "Babazada, Khazar"]
[WhiteFideId "12595926"]
[BlackFideId "13413554"]
[WhiteElo "2240"]
[BlackElo "2409"]
[Result "0-1"]
[Round "09"]
[TimeControl "180+1"]
[Date "2022.09.27"]
[WhiteClock "0:00:03"]
[BlackClock "0:00:04"]

1. e4 {[%clk 0:03:00]}  e6 {[%clk 0:02:58]} 2. d4 {[%clk 0:03:00]}  d5 {[%clk 0:02:59]} 3. Nc3 {[%clk 0:03:01]}  Bb4 {[%clk 0:02:58]} 4. exd5 {[%clk 0:03:01]}  exd5 {[%clk 0:02:58]} 5. Bd3 {[%clk 0:03:02]}  Nf6 {[%clk 0:02:57]} 6. Ne2 {[%clk 0:03:02]}  O-O {[%clk 0:02:57]} 7. O-O {[%clk 0:03:03]}  h6 {[%clk 0:02:57]} 8. Bf4 {[%clk 0:03:03]}  Bd6 {[%clk 0:02:56]} 9. Qd2 {[%clk 0:03:02]}  c6 {[%clk 0:02:54]} 10. Rae1 {[%clk 0:03:02]}  Re8 {[%clk 0:02:49]} 11. f3 {[%clk 0:03:02]}  Be6 {[%clk 0:02:46]} 12. g4 {[%clk 0:02:57]}  Bxf4 {[%clk 0:02:43]} 13. Qxf4 {[%clk 0:02:58]}  Nbd7 {[%clk 0:02:33]} 14. h4 {[%clk 0:02:55]}  Qb8 {[%clk 0:02:30]} 15. Qxb8 {[%clk 0:02:52]}  Raxb8 {[%clk 0:02:30]} 16. Nf4 {[%clk 0:02:53]}  Nf8 {[%clk 0:02:26]} 17. g5 {[%clk 0:02:53]}  hxg5 {[%clk 0:02:20]} 18. hxg5 {[%clk 0:02:54]}  N6h7 {[%clk 0:02:21]} 19. Bxh7+ {[%clk 0:02:24]}  Nxh7 {[%clk 0:02:19]} 20. g6 {[%clk 0:02:24]}  Ng5 {[%clk 0:02:19]} 21. gxf7+ {[%clk 0:02:19]}  Kxf7 {[%clk 0:01:55]} 22. Re5 {[%clk 0:02:19]}  Nh3+ {[%clk 0:01:29]} 23. Nxh3 {[%clk 0:02:18]}  Bxh3 {[%clk 0:01:29]} 24. Rfe1 {[%clk 0:02:19]}  Bd7 {[%clk 0:01:28]} 25. Rxe8 {[%clk 0:02:15]}  Rxe8 {[%clk 0:01:28]} 26. Rxe8 {[%clk 0:02:16]}  Bxe8 {[%clk 0:01:28]} 27. Kf2 {[%clk 0:02:14]}  Bd7 {[%clk 0:01:27]} 28. Ne2 {[%clk 0:02:14]}  b6 {[%clk 0:01:24]} 29. c3 {[%clk 0:02:14]}  Bf5 {[%clk 0:01:22]} 30. Kg3 {[%clk 0:02:14]}  Kf6 {[%clk 0:01:18]} 31. Kf4 {[%clk 0:02:14]}  g5+ {[%clk 0:01:17]} 32. Ke3 {[%clk 0:02:12]}  c5 {[%clk 0:01:16]} 33. b3 {[%clk 0:01:55]}  a5 {[%clk 0:01:14]} 34. c4 {[%clk 0:01:44]}  dxc4 {[%clk 0:00:47]} 35. bxc4 {[%clk 0:01:45]}  Be6 {[%clk 0:00:47]} 36. d5 {[%clk 0:01:42]}  Bd7 {[%clk 0:00:48]} 37. Nc3 {[%clk 0:01:40]}  Ke5 {[%clk 0:00:39]} 38. Ne4 {[%clk 0:01:40]}  g4 {[%clk 0:00:39]} 39. fxg4 {[%clk 0:01:07]}  Bxg4 {[%clk 0:00:40]} 40. Nc3 {[%clk 0:01:02]}  Bd7 {[%clk 0:00:38]} 41. Nd1 {[%clk 0:01:01]}  Bg4 {[%clk 0:00:33]} 42. Nf2 {[%clk 0:01:00]}  Bc8 {[%clk 0:00:31]} 43. Nd3+ {[%clk 0:00:59]}  Kd6 {[%clk 0:00:31]} 44. Ke4 {[%clk 0:00:58]}  Bh3 {[%clk 0:00:27]} 45. Ne5 {[%clk 0:00:52]}  Bf1 {[%clk 0:00:25]} 46. a3 {[%clk 0:00:48]}  a4 {[%clk 0:00:21]} 47. Nf7+ {[%clk 0:00:43]}  Ke7 {[%clk 0:00:22]} 48. Ne5 {[%clk 0:00:43]}  Kd6 {[%clk 0:00:22]} 49. Kf5 {[%clk 0:00:33]}  b5 {[%clk 0:00:20]} 50. cxb5 {[%clk 0:00:28]}  Kxd5 {[%clk 0:00:21]} 51. b6 {[%clk 0:00:27]}  Ba6 {[%clk 0:00:21]} 52. Kf4 {[%clk 0:00:26]}  Kd4 {[%clk 0:00:19]} 53. Nc6+ {[%clk 0:00:23]}  Kc3 {[%clk 0:00:19]} 54. Ke3 {[%clk 0:00:18]}  Kb2 {[%clk 0:00:18]} 55. Kd2 {[%clk 0:00:19]}  c4 {[%clk 0:00:16]} 56. Nb4 {[%clk 0:00:15]}  c3+ {[%clk 0:00:16]} 57. Ke3 {[%clk 0:00:14]}  Kxa3 {[%clk 0:00:08]} 58. Nc2+ {[%clk 0:00:04]}  Kb2 {[%clk 0:00:08]} 59. Nb4 {[%clk 0:00:05]}  c2 {[%clk 0:00:05]} 60. Kd4 {[%clk 0:00:01]}  c1=Q {[%clk 0:00:03]} 61. Nxa6 {[%clk 0:00:02]}  Qg1+ {[%clk 0:00:03]} 62. Kc4 {[%clk 0:00:02]}  Qxb6 {[%clk 0:00:04]} 63. Nc5 {[%clk 0:00:03]}  Qxc5+ {[%clk 0:00:04]} 0-1


[Site "https://www.chess.com"]

[Event "Titled Tuesday Blitz September 27 Early 2022"]
[White "Malek, Jan"]
[Black "Tomaszewski, Kacper"]
[WhiteFideId "21864080"]
[BlackFideId "1127373"]
[WhiteElo "2172"]
[BlackElo "2133"]
[Result "1-0"]
[Round "09"]
[TimeControl "180+1"]
[Date "2022.09.27"]
[WhiteClock "0:00:21"]
[BlackClock "0:00:01"]

1. c4 {[%clk 0:03:00]}  e6 {[%clk 0:02:59]} 2. Nf3 {[%clk 0:02:58]}  d5 {[%clk 0:02:59]} 3. d4 {[%clk 0:02:58]}  Nf6 {[%clk 0:02:59]} 4. Nc3 {[%clk 0:02:57]}  c5 {[%clk 0:02:59]} 5. e3 {[%clk 0:02:56]}  Nc6 {[%clk 0:02:59]} 6. a3 {[%clk 0:02:51]}  h6 {[%clk 0:02:58]} 7. dxc5 {[%clk 0:02:48]}  Bxc5 {[%clk 0:02:56]} 8. b4 {[%clk 0:02:48]}  Be7 {[%clk 0:02:53]} 9. Bb2 {[%clk 0:02:47]}  O-O {[%clk 0:02:51]} 10. cxd5 {[%clk 0:02:44]}  exd5 {[%clk 0:02:49]} 11. Be2 {[%clk 0:02:45]}  Be6 {[%clk 0:02:48]} 12. O-O {[%clk 0:02:45]}  a6 {[%clk 0:02:48]} 13. Rc1 {[%clk 0:02:43]}  Rc8 {[%clk 0:02:41]} 14. Qd3 {[%clk 0:02:43]}  Qd7 {[%clk 0:02:38]} 15. Rfd1 {[%clk 0:02:42]}  Rfd8 {[%clk 0:02:38]} 16. Qb1 {[%clk 0:02:35]}  Bf5 {[%clk 0:02:35]} 17. Bd3 {[%clk 0:02:34]}  Bg4 {[%clk 0:02:35]} 18. Be2 {[%clk 0:02:25]}  Bf5 {[%clk 0:02:34]} 19. Qa1 {[%clk 0:02:25]}  Qe6 {[%clk 0:02:29]} 20. Na4 {[%clk 0:02:14]}  Bg4 {[%clk 0:02:13]} 21. h3 {[%clk 0:02:04]}  Bxf3 {[%clk 0:02:07]} 22. Bxf3 {[%clk 0:02:04]}  Qf5 {[%clk 0:02:05]} 23. Nb6 {[%clk 0:01:59]}  Rc7 {[%clk 0:01:56]} 24. Nxd5 {[%clk 0:01:52]}  Nxd5 {[%clk 0:01:54]} 25. e4 {[%clk 0:01:52]}  Qf4 {[%clk 0:01:28]} 26. exd5 {[%clk 0:01:37]}  Bd6 {[%clk 0:01:28]} 27. dxc6 {[%clk 0:01:00]}  Qh2+ {[%clk 0:01:27]} 28. Kf1 {[%clk 0:01:00]}  Qh1+ {[%clk 0:01:13]} 29. Ke2 {[%clk 0:01:00]}  Re7+ {[%clk 0:01:12]} 30. Kd3 {[%clk 0:00:59]}  Qh2 {[%clk 0:00:33]} 31. Kc2 {[%clk 0:00:55]}  Qf4 {[%clk 0:00:22]} 32. Kb3 {[%clk 0:00:54]}  b5 {[%clk 0:00:20]} 33. Ka2 {[%clk 0:00:42]}  Qf5 {[%clk 0:00:15]} 34. Qb1 {[%clk 0:00:41]}  Qe6+ {[%clk 0:00:11]} 35. Bd5 {[%clk 0:00:41]}  Qc8 {[%clk 0:00:11]} 36. Qc2 {[%clk 0:00:37]}  Be5 {[%clk 0:00:07]} 37. Bxe5 {[%clk 0:00:28]}  Rxe5 {[%clk 0:00:08]} 38. Bb3 {[%clk 0:00:28]}  Rde8 {[%clk 0:00:06]} 39. Rd7 {[%clk 0:00:22]}  Re2 {[%clk 0:00:04]} 40. Rd2 {[%clk 0:00:22]}  Qc7 {[%clk 0:00:01]} 41. Rxe2 {[%clk 0:00:21]} 1-0


[Site "https://www.chess.com"]